Workbook

Sheet Feuil2
B2: Nom | C2: Ouverture | D2: +Haut | E2: +Bas | F2: Volume | G2: Veille | H2: Dernier | I2: Var | K2: Sortie perte | L2: Point d'entrée | M2: Sortie gain | P2: Alerte - | Q2: Alerte +
B3: Air Liquide | C3: =VLOOKUP($B$3,$B$10:$I$49,2,FALSE) -> 116.00 € | D3: =VLOOKUP($B$3,$B$10:$I$49,3,FALSE) -> 116.95 € | E3: =VLOOKUP($B$3,$B$10:$I$49,4,FALSE) -> 115.65 € | F3: =VLOOKUP($B$3,$B$10:$I$49,5,FALSE) -> 523287 | G3: =VLOOKUP($B$3,$B$10:$I$49,6,FALSE) -> 116.70 € | H3: =VLOOKUP($B$3,$B$10:$I$49,7,FALSE) -> 116.00 € | I3: =VLOOKUP($B$3,$B$10:$I$49,8,FALSE) -> -0.60% | K3: =VLOOKUP($B$3,$B$10:$M$48,10,FALSE) -> 114.35 € | L3: =VLOOKUP($B$3,$B$10:$M$48,11,FALSE) -> 116.10 € | M3: =VLOOKUP($B$3,$B$10:$M$48,12,FALSE) -> 118.00 € | N3: =VLOOKUP($B$3,$B$10:$N$48,13,FALSE) -> 0 | P3: =VLOOKUP($B$3,$B$9:$Q$49,15,FALSE) -> 114.68 € | Q3: =VLOOKUP($B$3,$B$9:$Q$49,16,FALSE) -> 117.27 €
B4: Societe Generale | C4: =VLOOKUP($B$4,$B$10:$I$49,2,FALSE) -> 44.43 € | D4: =VLOOKUP($B$4,$B$10:$I$49,3,FALSE) -> 45.18 € | E4: =VLOOKUP($B$4,$B$10:$I$49,4,FALSE) -> 44.26 € | F4: =VLOOKUP($B$4,$B$10:$I$49,5,FALSE) -> 1730108 | G4: =VLOOKUP($B$4,$B$10:$I$49,6,FALSE) -> 44.53 € | H4: =VLOOKUP($B$4,$B$10:$I$49,7,FALSE) -> 44.81 € | I4: =VLOOKUP($B$4,$B$10:$I$49,8,FALSE) -> 0.63% | K4: =VLOOKUP($B$4,$B$10:$M$48,10,FALSE) -> 0 | L4: =VLOOKUP($B$4,$B$10:$M$48,11,FALSE) -> 43.20 € | M4: =VLOOKUP($B$4,$B$10:$M$48,12,FALSE) -> 0 | N4: =VLOOKUP($B$4,$B$10:$N$48,13,FALSE) -> 43.2864 | P4: =VLOOKUP($B$4,$B$9:$Q$49,15,FALSE) ->  | Q4: =VLOOKUP($B$4,$B$9:$Q$49,16,FALSE) -> 
B5: Renault | C5: =VLOOKUP($B$5,$B$10:$I$49,2,FALSE) -> 93.31 € | D5: =VLOOKUP($B$5,$B$10:$I$49,3,FALSE) -> 94.42 € | E5: =VLOOKUP($B$5,$B$10:$I$49,4,FALSE) -> 92.89 € | F5: =VLOOKUP($B$5,$B$10:$I$49,5,FALSE) -> 726545 | G5: =VLOOKUP($B$5,$B$10:$I$49,6,FALSE) -> 93.68 € | H5: =VLOOKUP($B$5,$B$10:$I$49,7,FALSE) -> 94.08 € | I5: =VLOOKUP($B$5,$B$10:$I$49,8,FALSE) -> 0.43% | K5: =VLOOKUP($B$5,$B$10:$M$48,10,FALSE) -> 0 | L5: =VLOOKUP($B$5,$B$10:$M$48,11,FALSE) -> 88.75 € | M5: =VLOOKUP($B$5,$B$10:$M$48,12,FALSE) -> 0 | N5: =VLOOKUP($B$5,$B$10:$N$48,13,FALSE) -> 88.9275 | P5: =VLOOKUP($B$5,$B$9:$Q$49,15,FALSE) ->  | Q5: =VLOOKUP($B$5,$B$9:$Q$49,16,FALSE) -> 
B6: Airbus | C6: =VLOOKUP($B$6,$B$10:$I$49,2,FALSE) -> 67.70 € | D6: =VLOOKUP($B$6,$B$10:$I$49,3,FALSE) -> 68.32 € | E6: =VLOOKUP($B$6,$B$10:$I$49,4,FALSE) -> 67.26 € | F6: =VLOOKUP($B$6,$B$10:$I$49,5,FALSE) -> 1488540 | G6: =VLOOKUP($B$6,$B$10:$I$49,6,FALSE) -> 68.15 € | H6: =VLOOKUP($B$6,$B$10:$I$49,7,FALSE) -> 67.95 € | I6: =VLOOKUP($B$6,$B$10:$I$49,8,FALSE) -> -0.29% | K6: =VLOOKUP($B$6,$B$10:$M$48,10,FALSE) -> 0 | L6: =VLOOKUP($B$6,$B$10:$M$48,11,FALSE) -> 63.30 € | M6: =VLOOKUP($B$6,$B$10:$M$48,12,FALSE) -> 0 | N6: =VLOOKUP($B$6,$B$10:$N$48,13,FALSE) -> 63.4266 | P6: =VLOOKUP($B$6,$B$9:$Q$49,15,FALSE) ->  | Q6: =VLOOKUP($B$6,$B$9:$Q$49,16,FALSE) -> 
B7: Carrefour | C7: =VLOOKUP($B$7,$B$10:$I$49,2,FALSE) -> 29.34 € | D7: =VLOOKUP($B$7,$B$10:$I$49,3,FALSE) -> 29.69 € | E7: =VLOOKUP($B$7,$B$10:$I$49,4,FALSE) -> 29.22 € | F7: =VLOOKUP($B$7,$B$10:$I$49,5,FALSE) -> 1486227 | G7: =VLOOKUP($B$7,$B$10:$I$49,6,FALSE) -> 29.45 € | H7: =VLOOKUP($B$7,$B$10:$I$49,7,FALSE) -> 29.35 € | I7: =VLOOKUP($B$7,$B$10:$I$49,8,FALSE) -> -0.34% | K7: =VLOOKUP($B$7,$B$10:$M$48,10,FALSE) -> 0 | L7: =VLOOKUP($B$7,$B$10:$M$48,11,FALSE) -> 28.60 € | M7: =VLOOKUP($B$7,$B$10:$M$48,12,FALSE) -> 0 | N7: =VLOOKUP($B$7,$B$10:$N$48,13,FALSE) -> 28.6572 | P7: =VLOOKUP($B$7,$B$9:$Q$49,15,FALSE) ->  | Q7: =VLOOKUP($B$7,$B$9:$Q$49,16,FALSE) -> 
B9: Nom | C9: Ouverture | D9: +Haut | E9: +Bas | F9: Volume | G9: Veille | H9: Dernier | I9: Var | K9: Sortie perte | L9: Point d'entrée | M9: Sortie gain | P9: Alerte - | Q9: Alerte +
B10: Accor Hotels | C10: 39.175 | D10: 39.805 | E10: 39.075 | F10: 1297526 | G10: 39.32 | H10: 39.425 | I10: 0.27% | N10: =IF(K10<>"",0,L10*1.002) -> 0 | P10: =IF(K10="","",ROUNDDOWN(H10-(H10-K10)*0.8,2)) ->  | Q10: =IF(K10="","",K10+((M10-K10)*0.8)) -> 
B11: Air Liquide | C11: 116 | D11: 116.95 | E11: 115.65 | F11: 523287 | G11: 116.7 | H11: 116 | I11: -0.60% | K11: 114.35 | L11: 116.1 | M11: 118 | N11: =IF(K11<>"",0,L11*1.002) -> 0 | P11: 114.68 | Q11: 117.27
B12: Airbus | C12: 67.7 | D12: 68.32 | E12: 67.26 | F12: 1488540 | G12: 68.15 | H12: 67.95 | I12: -0.29% | L12: 63.3 | N12: =IF(K12<>"",0,L12*1.002) -> 63.4266
B13: Alcatel-Lucent | C13: 3.702 | D13: 3.724 | E13: 3.697 | F13: 11722489 | G13: 3.725 | H13: 3.709 | I13: -0.43% | N13: =IF(K13<>"",0,L13*1.002) -> 0
B14: Alstom | C14: 28.995 | D14: 29.225 | E14: 28.895 | F14: 476510 | G14: 29.085 | H14: 29.04 | I14: -0.15% | N14: =IF(K14<>"",0,L14*1.002) -> 0
B15: Arcelor Mittal | C15: 4.692 | D15: 4.731 | E15: 4.552 | F15: 13485462 | G15: 4.73 | H15: 4.577 | I15: -3.23% | N15: 0
B16: Axa | C16: 25.42 | D16: 25.805 | E16: 25.39 | F16: 3939472 | G16: 25.585 | H16: 25.545 | I16: -0.16% | N16: 0
B17: Bnp Paribas | C17: 55.7 | D17: 56.48 | E17: 55.61 | F17: 1906123 | G17: 55.89 | H17: 56.02 | I17: 0.23% | N17: 0
B18: Bouygues | C18: 35.105 | D18: 35.46 | E18: 35.02 | F18: 418227 | G18: 35.2 | H18: 35.4 | I18: 0.57% | N18: 0
B19: Cap Gemini | C19: 83.82 | D19: 85.61 | E19: 83.7 | F19: 414576 | G19: 84.38 | H19: 85.06 | I19: 0.81% | N19: 0
B20: Carrefour | C20: 29.34 | D20: 29.685 | E20: 29.22 | F20: 1486227 | G20: 29.445 | H20: 29.345 | I20: -0.34% | L20: 28.6 | N20: 28.6572
B21: Credit Agricole | C21: 11.355 | D21: 11.46 | E21: 11.345 | F21: 3055172 | G21: 11.4 | H21: 11.395 | I21: -0.04% | N21: 0
B22: Danone | C22: 64.8 | D22: 65.53 | E22: 64.55 | F22: 740936 | G22: 65.23 | H22: 65.02 | I22: -0.32% | N22: 0
B23: EDF | C23: 14.53 | D23: 14.545 | E23: 14.185 | F23: 1939654 | G23: 14.585 | H23: 14.185 | I23: -2.74% | N23: 0
B24: Engie | C24: 16.39 | D24: 16.45 | E24: 16.245 | F24: 2563607 | G24: 16.415 | H24: 16.29 | I24: -0.76% | N24: 0
B25: Essilor Intl | C25: 122.75 | D25: 124.15 | E25: 122.55 | F25: 319686 | G25: 123.55 | H25: 123.35 | I25: -0.16% | N25: 0
B26: Kering | C26: 163.6 | D26: 164.85 | E26: 161.55 | F26: 262324 | G26: 164.35 | H26: 161.85 | I26: -1.52% | N26: 0
B27: LafargeHolcim | C27: 51.28 | D27: 51.5 | E27: 50.16 | F27: 438078 | G27: 51.62 | H27: 50.4 | I27: -2.36% | N27: 0
B28: Legrand SA | C28: 54.41 | D28: 54.9 | E28: 54.19 | F28: 399996 | G28: 54.59 | H28: 54.79 | I28: 0.37% | N28: 0
B29: L'oreal | C29: 168.1 | D29: 170 | E29: 167.35 | F29: 292972 | G29: 169.05 | H29: 168.75 | I29: -0.18% | N29: 0
B30: Lvmh | C30: 158.6 | D30: 158.75 | E30: 155.8 | F30: 679335 | G30: 159.1 | H30: 155.95 | I30: -1.98% | N30: 0
B31: Michelin | C31: 94 | D31: 95.15 | E31: 93.82 | F31: 239147 | G31: 94.47 | H31: 94.85 | I31: 0.40% | N31: 0
B32: Orange | C32: 16.6 | D32: 16.685 | E32: 16.52 | F32: 3188724 | G32: 16.66 | H32: 16.62 | I32: -0.24% | N32: 0
B33: Pernod Ricard | C33: 106.7 | D33: 108.3 | E33: 106.6 | F33: 243216 | G33: 107.5 | H33: 107.8 | I33: 0.28% | N33: 0
B34: Peugeot | C34: 16.405 | D34: 16.58 | E34: 16.305 | F34: 2624872 | G34: 16.415 | H34: 16.35 | I34: -0.40% | N34: 0
B35: Publicis Groupe | C35: 59.51 | D35: 60 | E35: 59.46 | F35: 569802 | G35: 59.81 | H35: 59.54 | I35: -0.45% | N35: 0
B36: Renault | C36: 93.31 | D36: 94.42 | E36: 92.89 | F36: 726545 | G36: 93.68 | H36: 94.08 | I36: 0.43% | L36: 88.75 | N36: 88.9275
B37: Safran | C37: 68.7 | D37: 69.33 | E37: 68.17 | F37: 736274 | G37: 68.86 | H37: 68.89 | I37: 0.04% | N37: 0 | P37: =IF(K37="","",ROUNDDOWN(H37-(H37-K37)*0.8,2)) ->  | Q37: =IF(K37="","",K37+((M37-K37)*0.8)) -> 
B38: Saint Gobain | C38: 41.395 | D38: 41.77 | E38: 41.14 | F38: 1024418 | G38: 41.575 | H38: 41.295 | I38: -0.67% | N38: 0
B39: Sanofi | C39: 83.73 | D39: 84.55 | E39: 83.46 | F39: 1669744 | G39: 84.01 | H39: 83.83 | I39: -0.21% | N39: 0
B40: Schneider Electric | C40: 58.57 | D40: 59.33 | E40: 58.31 | F40: 1066916 | G40: 58.79 | H40: 58.94 | I40: 0.26% | N40: 0
B41: Societe Generale | C41: 44.425 | D41: 45.175 | E41: 44.26 | F41: 1730108 | G41: 44.53 | H41: 44.81 | I41: 0.63% | L41: 43.2 | N41: 43.2864
B42: Solvay | C42: 107.6 | D42: 108.2 | E42: 106.7 | F42: 184835 | G42: 108.2 | H42: 107.35 | I42: -0.79% | N42: 0
B43: Technip | C43: 49.985 | D43: 49.985 | E43: 48.64 | F43: 747016 | G43: 50.24 | H43: 49.4 | I43: -1.67% | N43: 0
B44: Total | C44: 46.525 | D44: 47.14 | E44: 46.47 | F44: 5184900 | G44: 47.03 | H44: 46.62 | I44: -0.87% | N44: 0
B45: Unibail-Rodamco | C45: 243.35 | D45: 245.1 | E45: 242.3 | F45: 239449 | G45: 243.55 | H45: 244.45 | I45: 0.37% | N45: 0
B46: Valeo | C46: 145.7 | D46: 146.95 | E46: 143.65 | F46: 245716 | G46: 146.25 | H46: 145 | I46: -0.85% | N46: 0
B47: Veolia Environ. | C47: 22.72 | D47: 22.98 | E47: 22.525 | F47: 1748691 | G47: 22.765 | H47: 22.89 | I47: 0.55% | N47: 0
B48: Vinci | C48: 61.62 | D48: 62.29 | E48: 61.5 | F48: 825578 | G48: 61.91 | H48: 62.11 | I48: 0.32% | N48: 0
B49: Vivendi | C49: 19.735 | D49: 20.1 | E49: 19.6 | F49: 5157006 | G49: 19.95 | H49: 20.055 | I49: 0.53% | N49: 0 | P49: =IF(K49="","",ROUNDDOWN(H49-(H49-K49)*0.8,2)) -> 

Sheet Feuil1
